bitfinex/quotes_ETHUSD_20250518
["timestamp","ask_amount","ask_price","bid_price","bid_amount"]
[1747579804620,0.8207,2561.2,2560.5,9.453]
[1747579804808,3.90549345,2560.5,2560.4,9.442]
[1747579805007,3.90563974,2560.4,2560.3,26.302]
[1747579805522,3.90563974,2560.4,2560.3,16.858]
[1747579806319,3.90528321,2560.7,2560.1,9.442]
[1747579806499,3.90566765,2560.4,2560.1,9.442]
[1747579806887,0.8207,2560.9,2560.1,9.442]
[1747579807082,3.90540382,2560.6,2560.1,9.442]
[1747579807322,3.90558443,2560.5,2560.1,9.442]
[1747579807490,3.90534392,2560.6,2560.1,9.442]
[1747579807491,3.90533468,2560.6,2560.1,9.442]
[1747579807685,3.90569276,2560.4,2560.1,9.442]
[1747579807927,3.90590204,2560.3,2560.1,18.841]
[1747579808226,3.90590204,2560.3,2560.0,0.7545]
[1747579808421,0.3905902,2560.3,2559.5,1.23256639]
[1747579808587,3.90606798,2560.2,2559.6,3.90676051]
[1747579808784,3.90587503,2560.3,2559.7,3.90668618]
[1747579808984,3.90596494,2560.2,2559.8,9.443]
[1747579809220,3.90618152,2560.1,2559.9,9.424]
[1747579809383,3.90625,2560.0,2559.9,9.424]
[1747579809798,3.90655988,2559.8,2559.7,9.443]
[1747579810035,0.8141,2560.5,2559.5,5.1394367]
[1747579810222,1.2860646,2560.5,2559.7,9.409]
[1747579810437,1.2860646,2560.5,2559.5,0.45276639]
[1747579810438,0.03984894,2560.4,2559.5,0.45276639]
[1747579810643,3.90659801,2559.8,2559.5,0.45276639]
[1747579810950,3.90656501,2559.8,2559.2,14.11425553]
[1747579811086,3.90656501,2559.8,2559.2,16.90613085]
[1747579811299,3.90683376,2559.7,2559.2,12.99867532]
[1747579811500,3.90683376,2559.7,2559.2,16.90614063]
[1747579811743,0.8141,2560.3,2559.2,12.99867532]
[1747579811956,0.8141,2560.3,2559.2,16.90609677]
[1747579812134,3.90655543,2559.8,2559.3,6.57094634]
[1747579812518,4.71992017,2560.3,2559.3,6.57094634]
[1747579812519,3.90650786,2559.9,2559.3,6.57094634]
[1747579812848,0.8141,2560.3,2559.4,0.03906761]
[1747579813054,3.90632516,2560.0,2559.4,3.90708214]
[1747579813549,3.90627633,2560.0,2559.3,2.66362794]
[1747579813751,0.4719646,2560.5,2559.4,1.28704279]
[1747579813904,3.90609987,2560.1,2559.5,3.90701308]
[1747579814105,3.90563974,2560.4,2559.6,3.90685299]
[1747579814302,3.9061008,2560.1,2559.8,0.8112]
[1747579814533,3.9061008,2560.1,2559.8,10.2152]
[1747579814932,3.90640259,2559.9,2559.8,9.404]
[1747579815137,3.90632697,2560.0,2559.8,9.404]
[1747579815442,0.4719646,2560.5,2559.7,9.386]
[1747579815607,3.90577011,2560.4,2559.7,9.386]
[1747579815802,3.90592555,2560.3,2559.8,3.90651856]
[1747579816002,3.9059505,2560.2,2559.7,15.64753657]
[1747579816248,3.90582266,2560.3,2559.7,11.74090483]
[1747579816401,3.90649245,2559.9,2559.8,9.371]
[1747579816606,0.8141,2560.6,2559.8,9.371]
[1747579816826,3.90581892,2560.3,2559.5,0.8112]
[1747579817039,3.90631441,2560.0,2559.7,9.369]
[1747579817659,0.8141,2560.6,2559.7,9.369]
[1747579817966,4.70677582,2561.3,2560.3,3.90568006]
[1747579818142,3.90528431,2560.7,2560.4,9.359]
[1747579818345,3.90528431,2560.7,2560.1,0.8112]
[1747579818346,0.03984894,2561.0,2560.1,0.8112]
[1747579818658,0.39444212,2561.0,2560.1,10.1672]
[1747579818838,0.7796,2560.7,2560.1,10.2012]
[1747579819003,3.9051877,2560.7,2560.2,9.39]
[1747579819207,3.90487719,2560.9,2560.2,9.39]
[1747579819416,5.07885444,2561.0,2560.2,9.39]
[1747579819620,3.9057552,2560.4,2560.2,9.39]
[1747579819843,3.90502967,2560.8,2560.1,0.8112]
[1747579820044,3.90618909,2560.1,2560.0,9.37]
[1747579820353,0.7796,2560.4,2559.8,9.89776639]
[1747579820516,4.68464915,2560.8,2559.9,9.371]
[1747579820717,0.7796,2560.8,2559.9,3.90634278]
[1747579820911,3.9056057,2560.5,2560.0,13.2852069]
[1747579821107,3.90557967,2560.5,2560.0,9.379]
[1747579821347,3.90594484,2560.2,2560.1,9.385]
[1747579821549,3.90594484,2560.2,2560.1,9.382]
[1747579821745,3.90594484,2560.2,2560.1,0.36442532]
[1747579823853,3.90626302,2560.0,2559.8,9.80376639]
[1747579824014,3.90591515,2560.3,2559.8,13.71029329]
[1747579824215,3.90640259,2559.9,2559.8,0.45276639]
[1747579824429,4.72585153,2559.9,2559.8,0.45276639]
[1747579824631,8.70797202,2559.9,2559.8,0.45276639]
[1747579824856,21.32412308,2559.9,2559.8,0.25468109]
[1747579825556,21.32412308,2559.9,2558.2,9.364]
[1747579825557,3.90838739,2558.6,2558.5,0.36550921]
[1747579825855,3.90807831,2558.9,2558.5,0.36550921]
[1747579826039,3.90816546,2558.8,2558.5,0.36550921]
[1747579826384,3.90817068,2558.8,2558.5,0.36550921]
[1747579826530,3.90823016,2558.8,2558.5,0.36550921]
[1747579826730,3.90831421,2558.7,2558.3,9.36]
[1747579826932,3.90790175,2559.0,2558.4,4.66013724]
[1747579827264,0.03984894,2559.3,2558.4,0.7515]
[1747579827468,3.90839637,2558.6,2558.5,9.383]
[1747579827639,3.90829961,2558.7,2558.5,9.383]
[1747579827839,3.90829961,2558.7,2558.3,9.446]
[1747579827840,3.90852037,2558.6,2558.0,0.60368852]
[1747579828057,0.7796,2558.9,2558.1,9.379]
[1747579828263,3.90864623,2558.5,2558.1,9.379]
[1747579828465,0.7796,2558.9,2558.1,9.379]
[1747579828763,3.90826469,2558.7,2558.1,12.06356885]
[1747579829074,3.90834557,2558.7,2558.1,15.97265405]
[1747579829266,3.90842239,2558.6,2558.1,15.97265405]
[1747579829569,3.90808504,2558.8,2558.2,23.46542733]
[1747579829727,3.90839588,2558.6,2558.3,9.367]
[1747579830079,3.90841162,2558.6,2558.4,9.367]
[1747579830257,3.90827881,2558.7,2558.4,9.367]
[1747579830452,3.90815434,2558.8,2558.4,9.367]
[1747579830765,4.68714717,2559.2,2558.4,9.366]
[1747579831065,2.13241231,2559.8,2558.5,0.03908484]
[1747579831363,10.34489987,2559.9,2558.6,9.365]
[1747579831364,3.90773528,2559.1,2558.6,9.365]
[1747579831671,3.90763591,2559.1,2558.7,0.7515]
[1747579832167,3.9072551,2559.4,2558.8,3.90800672]
[1747579832477,10.8296,2559.9,2559.4,3.90705508]
[1747579832641,0.46855152,2560.3,2559.6,0.7515]
[1747579832828,3.90622157,2560.1,2559.6,0.7515]
[1747579833035,3.90609741,2560.1,2559.6,0.7515]
[1747579833231,3.90609741,2560.1,2559.0,0.8243]
[1747579833232,0.03984894,2560.0,2559.0,0.8243]
[1747579833459,3.90696914,2559.6,2559.1,18.823]
[1747579833765,3.90698745,2559.6,2559.2,9.374]
[1747579833991,4.72885619,2559.8,2559.0,0.8243]
[1747579834156,3.90728232,2559.4,2559.0,0.8243]
[1747579834356,3.90706714,2559.5,2559.1,9.358]
[1747579834573,3.90688931,2559.6,2559.1,13.00003]
[1747579835073,3.90688931,2559.6,2559.1,9.358]
[1747579835475,0.8223,2559.8,2559.1,9.358]
[1747579835681,3.90696123,2559.6,2559.1,9.358]
[1747579835893,3.90670781,2559.7,2559.0,0.8243]
[1747579836069,0.8223,2559.8,2559.0,0.8243]
[1747579836390,0.8223,2559.8,2559.1,9.328]
[1747579836556,3.90725967,2559.4,2559.1,9.328]
[1747579836889,0.47287482,2559.7,2559.1,9.328]
[1747579837067,3.90747108,2559.2,2559.1,9.328]
[1747579837264,3.90747108,2559.2,2559.1,9.311]
[1747579837464,0.8223,2559.8,2559.1,9.311]
[1747579837650,3.90670781,2559.7,2559.1,9.311]
[1747579837857,3.90679971,2559.7,2559.1,3.90758885]
[1747579838057,3.90643629,2559.9,2559.3,4.73154288]
[1747579838256,0.8223,2560.1,2559.3,0.8243]
[1747579838457,3.90694466,2559.6,2559.4,9.302]
[1747579838756,0.8223,2560.1,2559.0,0.7661]
[1747579838955,0.7569,2559.8,2559.1,9.294]
[1747579839155,3.90686044,2559.6,2559.1,9.294]
[1747579839463,3.90701348,2559.5,2559.1,9.294]
[1747579839675,3.90725221,2559.4,2559.1,9.294]
[1747579839872,0.46633026,2559.7,2558.9,16.87]
[1747579840110,3.90714825,2559.5,2559.1,9.28]
[1747579840419,3.90708573,2559.5,2559.1,9.28]
[1747579841277,3.90726868,2559.4,2559.2,9.259]
[1747579841659,3.90707467,2559.5,2559.2,9.259]
[1747579841857,8.7569,2559.8,2559.2,9.259]
[1747579842080,3.90712144,2559.5,2559.2,9.259]
[1747579842283,3.90725968,2559.4,2559.2,9.259]
[1747579842470,3.9073184,2559.3,2559.2,9.259]
[1747579842871,5.17309524,2559.7,2558.9,16.87]
[1747579843068,3.9076286,2559.1,2558.9,16.87]
[1747579843356,3.90790556,2559.0,2558.5,9.232]
[1747579843657,3.9080474,2558.9,2558.5,9.232]
[1747579843895,4.29843866,2559.1,2558.5,9.232]
[1747579844201,3.90784814,2559.0,2558.5,9.232]
[1747579844364,3.90794342,2558.9,2558.5,9.232]
[1747579844713,0.82063306,2558.9,2558.4,0.7855]
[1747579844862,3.90817995,2558.8,2558.5,9.209]
[1747579845255,0.39076286,2559.1,2558.5,13.11745846]
[1747579845461,3.90786178,2559.0,2558.5,13.11745846]
[1747579845670,3.90786178,2559.0,2558.5,9.209]
[1747579845875,3.90793407,2558.9,2558.5,9.209]
[1747579846072,0.804,2558.4,2556.6,10.1005]
[1747579846273,3.90923466,2558.1,2557.3,4.69587416]
[1747579846473,3.90924012,2558.1,2557.5,3.91004897]
[1747579846682,0.804,2558.4,2557.5,9.315]
[1747579846683,3.90975574,2557.8,2557.5,9.315]
[1747579846962,3.90969093,2557.8,2557.5,9.315]
[1747579847164,0.55,2558.1,2557.3,0.7855]
[1747579847513,3.90976267,2557.7,2557.3,0.7855]
[1747579847665,8.804,2558.4,2557.4,9.304]
[1747579847866,4.71273306,2558.4,2557.7,3.90964747]
[1747579848198,8.8293,2558.8,2557.9,0.7949]
[1747579848364,3.90894709,2558.3,2557.9,0.7949]
[1747579848559,3.90905162,2558.2,2557.9,9.3]
[1747579848866,0.55,2558.7,2557.9,9.289]
[1747579849088,0.93793,2558.6,2557.9,9.289]
[1747579849291,0.8293,2558.3,2557.3,0.7949]
[1747579849495,3.90871976,2558.4,2557.9,4.7043281]
[1747579849714,0.93793,2558.6,2558.1,3.90915132]
[1747579849997,0.8293,2558.9,2558.2,3.90891372]
[1747579850166,3.90810185,2558.8,2558.2,5.22931848]
[1747579850366,3.90826923,2558.7,2558.2,3.90892711]
[1747579850561,3.90826923,2558.7,2558.1,3.90909133]
[1747579850758,3.90815762,2558.8,2558.2,13.20498962]
[1747579851197,3.90824264,2558.7,2558.1,3.90912962]
[1747579851364,3.90850224,2558.6,2558.3,9.285]
[1747579851560,3.90816539,2558.8,2558.4,9.285]
[1747579851905,0.44581654,2558.8,2557.9,4.70433993]
[1747579852100,0.8293,2558.6,2557.9,0.7949]
[1747579852300,0.8293,2558.6,2557.9,3.90943569]
[1747579852503,0.8293,2558.6,2557.6,18.642]
[1747579852811,0.8293,2558.7,2557.9,3.90943254]
[1747579853012,3.90838739,2558.6,2558.0,3.90929015]
[1747579853297,0.8293,2558.7,2557.6,9.302]
[1747579853468,3.90838739,2558.6,2558.0,3.90920335]
[1747579853669,3.90858438,2558.5,2558.0,3.90920335]
[1747579853871,3.90884676,2558.3,2557.9,9.294]
[1747579854067,0.86462718,2558.5,2557.9,9.294]
[1747579854411,3.90841274,2558.6,2558.0,3.90930414]
[1747579854613,0.8293,2558.7,2558.1,0.7949]
[1747579854821,0.8293,2558.7,2558.2,3.90899851]
[1747579855136,4.73780068,2558.6,2557.4,9.304]
[1747579855267,3.90871739,2558.4,2557.9,3.90944625]
[1747579855467,3.90799497,2558.9,2558.3,3.90882395]
[1747579855710,3.90799497,2558.9,2558.0,9.297]
[1747579855711,3.90834104,2558.7,2558.1,13.20603407]
[1747579856067,4.68971406,2558.8,2558.3,3.90884173]
[1747579856271,3.90832175,2558.7,2558.2,13.1959534]
[1747579857089,3.90803763,2558.9,2558.2,10.0819]
[1747579857416,3.90782426,2559.0,2558.5,3.90847926]
[1747579857598,3.90782426,2559.0,2558.2,12.02729]
[1747579857599,4.29840165,2559.1,2558.4,3.90862312]
[1747579857899,3.90808291,2558.8,2558.6,9.275]
[1747579858202,0.39076286,2559.1,2558.5,9.268]
[1747579858203,4.29840082,2559.1,2558.5,9.268]
[1747579858390,3.90801121,2558.9,2558.5,9.268]
[1747579858995,0.8293,2559.2,2558.6,3.90831434]
[1747579859185,3.90776478,2559.1,2558.5,13.17650779]
[1747579859697,1.30297161,2559.2,2558.5,9.245]
[1747579860003,0.7884,2559.5,2558.9,3.90792918]
[1747579860223,0.7884,2559.5,2559.1,3.90755237]
[1747579860374,0.7884,2559.5,2558.8,0.8232]
[1747579860375,0.7884,2559.5,2559.0,9.235]
[1747579860570,4.69449941,2560.1,2559.3,3.90717116]
[1747579860885,0.7884,2560.1,2559.4,0.86227322]
[1747579861084,0.01699244,2560.2,2559.8,3.90648022]
[1747579861279,0.01699244,2560.2,2559.8,13.13348022]
[1747579861510,0.01699244,2560.2,2560.0,3.90616932]
[1747579861674,0.01699244,2560.2,2560.1,3.90609741]
[1747579862610,0.01699244,2560.2,2559.6,0.8232]
[1747579862808,0.01699244,2560.2,2559.8,3.90646989]
[1747579863111,0.01699244,2560.2,2559.8,0.03906369]
[1747579863316,0.01699244,2560.2,2560.1,4.67199741]
[1747579863814,0.01699244,2560.2,2560.1,23.28399741]
[1747579866412,0.01699244,2560.2,2560.1,22.31909741]
[1747579867520,0.01699244,2560.2,2560.1,23.08499741]
[1747579867734,0.01699244,2560.2,2560.1,45.69629171]
[1747579867929,0.01699244,2560.2,2560.1,49.77201872]
[1747579868094,0.01699244,2560.2,2560.1,31.35901872]
[1747579868294,0.01699244,2560.2,2560.1,43.53415272]
[1747579868722,0.7766,2562.2,2561.1,0.78]
[1747579868935,0.7766,2562.6,2561.7,0.78]
[1747579869231,0.7766,2562.6,2561.7,0.81903259]
[1747579869435,3.90247179,2562.5,2561.8,9.2]
[1747579869605,3.90277793,2562.3,2561.8,9.2]
[1747579869813,0.03984894,2562.2,2561.8,9.2]
[1747579870026,3.90243902,2562.5,2561.8,9.2]
[1747579870235,3.9031783,2562.1,2561.8,9.2]
[1747579870434,0.4679039,2562.4,2561.7,9.203]
[1747579870633,3.90291277,2562.2,2561.7,9.203]
[1747579870804,0.7766,2562.6,2561.7,9.203]
[1747579871150,0.03984894,2562.5,2562.0,3.90310457]
[1747579871307,3.90230344,2562.6,2562.0,3.90310457]
[1747579871746,3.90212934,2562.8,2562.1,3.90295195]
[1747579871905,0.78039593,2562.7,2561.8,19.196]
[1747579872231,3.94223183,2562.6,2562.1,3.90304655]
[1747579872408,0.7766,2563.0,2561.8,19.196]
[1747579872409,3.90219644,2562.7,2561.9,3.90333106]
[1747579872607,3.90219644,2562.7,2561.8,19.196]
[1747579872840,3.90219644,2562.7,2562.1,3.90289963]
[1747579873045,0.7766,2563.0,2562.5,3.90229291]
[1747579873344,3.9019822,2562.8,2561.9,3.90322621]
[1747579873543,3.90241932,2562.6,2561.9,3.90335298]
[1747579873841,0.43403205,2562.7,2561.8,0.78]
[1747579873842,0.39418311,2562.7,2561.8,0.78]
[1747579874017,0.7654,2562.4,2562.0,18.38]
[1747579874219,0.55,2563.0,2562.1,3.90294019]
[1747579874419,0.55,2563.0,2562.2,9.168]
[1747579874420,3.90250111,2562.5,2562.2,9.168]
[1747579874633,4.70707889,2562.9,2562.2,9.168]
[1747579874634,0.7654,2562.9,2562.2,9.168]
[1747579874835,3.9019822,2562.8,2562.2,9.168]
[1747579875016,0.7654,2562.9,2562.2,9.168]
[1747579875238,4.66725336,2562.9,2562.2,9.168]
[1747579875446,0.03984894,2562.8,2562.3,9.179]
[1747579875611,3.90218273,2562.7,2562.2,9.179]
[1747579875811,1.3154,2562.9,2562.2,9.179]
[1747579876011,4.6681995,2562.3,2561.6,3.90377657]
[1747579876315,0.7654,2562.3,2561.8,9.208]
[1747579876516,3.90228074,2562.7,2561.9,3.90330468]
[1747579876721,0.7654,2562.8,2562.0,4.66543153]
[1747579876722,3.9422501,2562.6,2562.0,4.66543153]
[1747579876917,3.90273518,2562.4,2562.1,18.38]
[1747579877123,0.7654,2562.8,2562.2,9.168]
[1747579877318,0.46673322,2562.7,2562.2,9.168]
[1747579877540,4.66739921,2562.8,2562.2,13.07082454]
[1747579877965,0.7654,2562.8,2562.3,3.90269369]
[1747579878275,0.7654,2562.8,2561.9,3.90325945]
[1747579878576,3.90252825,2562.5,2562.0,18.367]
[1747579878777,3.90260626,2562.4,2561.9,3.90333506]
[1747579878970,3.90274769,2562.3,2562.1,18.362]
[1747579879155,4.66743732,2562.8,2562.1,18.362]
[1747579879360,3.90284645,2562.3,2562.2,9.152]
[1747579879555,3.90243922,2562.5,2562.2,9.152]
[1747579880066,3.90295247,2562.2,2561.7,0.7623]
[1747579880261,3.30566996,2562.4,2562.0,9.138]
[1747579880595,3.90291659,2562.2,2562.0,9.138]
[1747579881094,0.46674373,2562.7,2562.1,9.127]
[1747579881255,0.46674373,2562.7,2561.7,0.7623]
[1747579881444,0.51341545,2562.6,2561.8,18.33]
[1747579881645,3.9026108,2562.4,2561.8,22.23341522]
[1747579881852,0.03984894,2562.5,2561.9,9.115]
[1747579882161,3.90275505,2562.3,2561.9,9.115]
[1747579882981,0.03984894,2562.4,2561.5,20.77295378]
[1747579883171,0.03984894,2562.4,2559.8,0.77]
[1747579883172,3.98447022,2561.6,2559.8,0.77]
[1747579883362,0.8252,2560.9,2560.2,3.90585358]
[1747579883561,4.73016892,2560.9,2560.2,3.90592868]
[1747579883757,0.8252,2560.9,2560.3,3.90568694]
[1747579884088,0.8252,2561.2,2560.4,2.09976869]
[1747579884247,0.8252,2562.1,2560.5,0.782]
[1747579884452,3.72449097,2561.9,2560.5,0.782]
[1747579884685,3.90435845,2561.3,2560.5,4.68743098]
[1747579884897,3.9441163,2561.3,2560.5,0.782]
[1747579885099,0.8252,2561.5,2560.6,9.276]
[1747579885100,3.90450824,2561.2,2560.6,9.276]
[1747579885267,0.8252,2561.5,2560.6,10.67234658]
[1747579885447,0.8252,2561.5,2560.9,3.90486364]
[1747579885654,0.8252,2561.8,2561.2,3.90434055]
[1747579885852,10.0312,2562.1,2561.2,10.069]
[1747579886192,3.90348038,2561.9,2561.2,13.97341648]
[1747579886374,0.8252,2562.5,2561.3,10.60334165]
[1747579886551,0.8252,2562.5,2561.9,3.90335298]
[1747579886752,3.90213952,2562.7,2562.0,0.782]
[1747579886976,3.90230169,2562.6,2562.0,4.68512142]
[1747579887284,0.8252,2562.8,2562.0,10.059]
[1747579887491,3.90213446,2562.7,2562.0,10.059]
[1747579887663,3.90252971,2562.5,2561.9,13.17532731]
[1747579887866,3.90235463,2562.6,2562.0,3.90319977]
[1747579888281,3.90226555,2562.7,2561.9,9.272]
[1747579888282,0.8252,2562.8,2561.9,9.272]
[1747579888661,0.8252,2562.8,2562.3,3.90265057]
[1747579888889,4.72726228,2562.8,2562.2,3.90282283]
[1747579889091,0.8166,2563.1,2562.5,3.90233751]
[1747579889266,0.8166,2563.1,2562.3,4.65274839]
[1747579889593,3.90167772,2563.0,2562.3,0.7501]
[1747579889790,3.90167772,2563.0,2562.4,13.14756825]
[1747579890170,0.8166,2563.1,2562.5,3.90243902]
[1747579890355,0.8166,2563.1,2562.5,1.78001291]
[1747579890556,0.8166,2563.1,2562.6,3.90228674]
[1747579890879,3.9011645,2563.4,2562.5,1.81903427]
[1747579891081,0.8166,2563.7,2562.9,3.90180165]
[1747579891255,0.8166,2563.7,2563.1,3.90142008]
[1747579891458,0.8166,2563.7,2563.3,3.90113359]
[1747579891891,0.8166,2563.7,2563.2,3.9013018]
[1747579892095,3.90123103,2563.3,2563.2,9.213]
[1747579892391,3.90095833,2563.5,2563.2,9.213]
[1747579892593,1.28830943,2563.7,2563.2,9.213]
[1747579892766,3.90125468,2563.3,2562.9,9.211]
[1747579892972,3.90109164,2563.4,2562.9,9.211]
[1747579893172,3.90096655,2563.5,2562.9,13.11272207]
[1747579893493,4.80997582,2563.5,2562.9,13.11272207]
[1747579893695,3.90107287,2563.4,2562.9,3.90181873]
[1747579893895,3.90107287,2563.4,2562.9,13.10081873]
[1747579894257,3.90107287,2563.4,2562.9,9.199]
[1747579894457,3.90147032,2563.2,2562.9,9.189]
[1747579894864,3.90127858,2563.3,2562.6,4.65231007]
[1747579895170,4.81002534,2563.5,2563.0,3.90160192]
[1747579895554,4.81002534,2563.5,2562.8,3.9019822]
[1747579895781,4.81002534,2563.5,2562.9,3.90182995]
[1747579895997,4.81000247,2563.5,2562.9,3.90173343]
[1747579896155,4.81000247,2563.5,2562.9,3.90171406]
[1747579896359,4.81003159,2563.5,2562.9,3.90171406]
[1747579896802,4.81003159,2563.5,2562.8,3.90193057]
[1747579897000,3.90219262,2562.7,2562.1,0.4512629]
[1747579897159,4.74432239,2563.1,2562.1,4.35422876]
[1747579897358,3.90210867,2562.8,2562.2,3.90281349]
[1747579897862,0.8029,2563.1,2562.1,4.35428323]
[1747579898065,3.90213554,2562.7,2562.1,0.4512629]
[1747579898264,4.41201617,2563.0,2562.1,13.50818703]
[1747579898265,0.4704329,2563.0,2562.1,13.50818703]
[1747579898463,3.90220625,2562.7,2562.1,13.50818703]
[1747579898677,3.90232827,2562.6,2562.1,9.5174606]
[1747579898862,3.90264391,2562.4,2562.1,0.3634606]
[1747579899197,0.8245,2562.5,2562.1,0.3634606]
[1747579899496,4.72653059,2562.8,2562.1,0.3634606]
[1747579899695,4.72649149,2562.8,2562.2,3.9027738]
[1747579899995,0.8245,2562.8,2562.3,3.90260211]
[1747579900293,0.8245,2562.8,2562.4,3.90255299]
[1747579900498,3.90174663,2563.0,2562.4,3.90251419]
[1747579900697,5.68281372,2563.0,2562.5,3.90239202]
[1747579900895,5.68277807,2563.0,2562.5,3.90239202]
[1747579901200,4.72564833,2563.4,2562.4,13.08559132]
[1747579901361,3.90123327,2563.3,2562.8,3.90190645]
[1747579901566,3.90162989,2563.1,2562.8,9.125]
[1747579902001,3.90162989,2563.1,2562.6,3.9022091]
[1747579902298,3.90122108,2563.3,2562.6,13.01913579]
[1747579902504,3.90147815,2563.2,2562.7,3.90211816]
[1747579902677,4.37381348,2563.3,2562.6,13.01925431]
[1747579902891,4.37381348,2563.3,2562.7,3.90201363]
[1747579903086,0.47257211,2563.3,2562.6,9.117]
[1747579903290,0.8245,2563.4,2562.9,3.90175235]
[1747579903610,4.72565955,2563.4,2562.6,13.01913752]
[1747579903825,0.8245,2563.4,2562.3,0.8029]
[1747579904028,3.90145357,2563.2,2562.6,13.08516719]
[1747579904231,3.90190227,2562.9,2562.3,3.90266269]
[1747579904435,3.90126226,2563.3,2562.8,3.90193631]
[1747579905115,3.9012791,2563.3,2562.7,12.99907051]
[1747579905331,0.7998,2563.4,2562.6,0.8167]
[1747579905634,0.55,2563.2,2562.2,0.8167]
[1747579905789,3.90252466,2562.5,2562.1,9.5342629]
[1747579906135,0.83964894,2563.1,2562.1,0.4512629]
[1747579906136,0.7998,2562.6,2562.1,0.4512629]
[1747579906348,5.25269594,2562.2,2562.1,0.4512629]
[1747579906628,17.39854488,2562.2,2562.1,0.4512629]
[1747579906923,13.25376252,2561.5,2561.4,0.36343422]
[1747579907123,35.52307363,2561.5,2561.4,0.36343422]
[1747579907332,39.46576316,2561.5,2561.4,0.36343422]
[1747579907632,16.64645205,2561.5,2561.4,0.36343422]
[1747579907930,4.70376252,2561.5,2561.4,0.36343422]
[1747579908078,4.70333546,2561.8,2561.4,0.36343422]
[1747579908284,3.90392596,2561.6,2561.4,0.36343422]
[1747579908612,1.3498,2562.2,2560.8,0.8167]
[1747579908811,3.90346896,2561.9,2561.3,3.90414938]
[1747579909145,3.90310215,2562.1,2561.5,3.90384925]
[1747579909546,3.90262268,2562.4,2561.8,3.90347913]
[1747579909721,3.90276165,2562.3,2561.7,3.90365772]
[1747579910343,3.90289871,2562.2,2561.7,3.90365772]
[1747579910648,9.9838,2562.5,2561.9,3.90327153]
[1747579910649,4.70232037,2562.5,2561.9,3.90327153]
[1747579910851,3.9024402,2562.5,2561.8,12.98139818]
[1747579911145,3.90278646,2562.3,2561.9,9.075]
[1747579911448,3.90296,2562.2,2561.9,9.075]
[1747579911752,3.90259825,2562.4,2561.9,9.075]
[1747579911944,3.90278625,2562.3,2561.9,9.075]
[1747579912410,3.90269525,2562.4,2561.9,9.075]
[1747579912610,3.90303364,2562.2,2561.6,0.8167]
[1747579912823,0.39026953,2562.3,2561.6,0.8167]
[1747579912824,3.90314546,2562.1,2561.6,9.8917]
[1747579913224,3.90314546,2562.1,2561.6,13.79550444]
[1747579913420,0.03984894,2562.0,2561.6,9.075]
[1747579913639,3.90314546,2562.1,2561.6,9.075]
[1747579913845,3.90302554,2562.2,2561.6,9.075]
[1747579914046,3.90310817,2562.1,2561.6,12.97879104]
[1747579914242,3.90274362,2562.3,2561.7,3.90364954]
[1747579914450,3.9029187,2562.2,2561.6,12.97874061]
[1747579914744,4.68328199,2562.3,2561.6,9.075]
[1747579914946,3.90307662,2562.1,2561.6,9.075]
[1747579915133,3.90337737,2561.9,2561.3,0.8062]
[1747579915321,4.37038252,2561.9,2561.3,12.97925681]
[1747579915651,0.03984894,2562.0,2561.4,3.9041058]
[1747579915652,3.90326614,2562.0,2561.4,3.9041058]
[1747579916354,0.78053756,2562.3,2562.0,3.90319131]
[1747579916550,0.7663,2562.5,2562.0,3.90319131]
[1747579916956,3.90262443,2562.4,2561.8,3.90341199]
[1747579917157,3.90262443,2562.4,2561.9,3.90333033]
[1747579917650,0.7663,2563.0,2561.8,9.075]
[1747579917818,3.90229104,2562.6,2561.9,3.90335298]
[1747579918019,3.90244141,2562.5,2562.0,3.90320062]
[1747579918225,3.90266404,2562.4,2561.8,3.90338326]
[1747579918530,3.90290212,2562.2,2561.7,3.90365579]
[1747579918733,3.90301363,2562.2,2561.6,4.70992941]
[1747579918938,3.90301363,2562.2,2561.7,9.075]
[1747579918939,3.90309553,2562.1,2561.7,9.075]
[1747579919134,3.90329802,2562.0,2561.3,16.853]
[1747579919336,3.90344403,2561.9,2561.3,20.75719692]
[1747579919541,3.90351147,2561.8,2561.4,9.075]
[1747579919828,3.90320062,2562.0,2561.3,9.075]
[1747579920047,9.185,2562.1,2561.3,9.075]
[1747579920250,0.8179,2562.3,2561.4,0.03904249]
[1747579920437,0.3902291,2562.6,2561.8,0.8105]
[1747579920625,3.90266588,2562.4,2561.8,12.97840144]
[1747579920820,8.3902291,2562.6,2561.5,4.71442759]
[1747579921021,8.3902291,2562.6,2561.6,9.075]
[1747579921022,3.9029985,2562.2,2561.6,9.075]
[1747579921257,3.90249497,2562.5,2561.6,9.075]
[1747579921429,1.22927241,2562.4,2561.6,12.97869812]
[1747579921634,3.90302387,2562.2,2561.6,9.075]
[1747579921844,3.90302387,2562.2,2561.7,3.90356659]
[1747579922153,1.22927241,2562.4,2561.6,9.075]
[1747579922350,1.22927241,2562.4,2561.9,3.90326188]
[1747579922556,1.22927241,2562.4,2561.6,9.075]
[1747579922735,9.5752291,2562.6,2562.0,3.90309286]
[1747579922933,0.3902291,2562.6,2562.2,3.90280884]
[1747579923147,0.8179,2562.7,2562.1,9.075]
[1747579923148,3.90263091,2562.4,2562.1,9.075]
[1747579923332,3.90259132,2562.4,2562.1,9.075]
[1747579923652,0.55,2562.6,2561.7,9.075]
[1747579923826,3.9028911,2562.3,2561.7,12.97856818]
[1747579924028,3.90267981,2562.4,2561.8,3.90339963]
[1747579924226,3.90277054,2562.3,2561.8,3.90339963]
[1747579924764,0.8179,2562.7,2561.7,9.075]
[1747579924929,3.90249934,2562.5,2562.0,3.90318414]
[1747579925125,9.185,2563.0,2562.0,3.90318414]
[1747579925126,0.7988,2563.0,2562.4,3.90255151]
[1747579925351,0.7988,2563.0,2562.4,3.90259132]
[1747579925554,4.70058539,2563.0,2562.5,3.9023878]
[1747579926223,1.65899923,2563.0,2562.3,9.074]
[1747579926462,4.70060388,2563.0,2562.3,12.97668995]
[1747579926756,3.90182995,2562.9,2562.3,12.97668995]
[1747579926960,4.70060388,2563.0,2562.3,9.074]
[1747579926961,3.90223288,2562.7,2562.3,9.074]
[1747579927265,3.90291437,2562.2,2561.9,9.074]
[1747579927560,3.9021222,2562.8,2562.1,3.90294188]
[1747579927760,5.25475621,2562.7,2562.2,3.90289477]